[Event "Early-Titled-Tuesday-Blitz-February-13-2024"]
[Site "Chess.com"]
[Date "2024.02.13"]
[Round "11"]
[White "Aslanov_Umid"]
[Black "VinzentSpitzl"]
[Result "1/2-1/2"]
[WhiteElo "2661"]
[BlackElo "2511"]
[TimeControl "180+1"]
[EndTime "10:10:23 PST"]
[Termination "Game drawn by repetition"]

1. e4 {[%clk 0:03:00.9]} 1... c5 {[%clk 0:02:49.9]} 2. Nf3 {[%clk 0:03:01.5]}
2... d6 {[%clk 0:02:46.7]} 3. d4 {[%clk 0:03:02]} 3... cxd4 {[%clk 0:02:47.3]}
4. Nxd4 {[%clk 0:03:02.9]} 4... Nf6 {[%clk 0:02:47.6]} 5. Nc3 {[%clk 0:03:03.4]}
5... a6 {[%clk 0:02:48.2]} 6. Bc4 {[%clk 0:03:03.1]} 6... e6 {[%clk 0:02:48]} 7.
Bb3 {[%clk 0:03:03.8]} 7... Nc6 {[%clk 0:02:48]} 8. Be3 {[%clk 0:03:00.6]} 8...
Qc7 {[%clk 0:02:46.5]} 9. Qe2 {[%clk 0:02:59.5]} 9... Na5 {[%clk 0:02:45.6]} 10.
g4 {[%clk 0:02:55.2]} 10... Be7 {[%clk 0:02:43]} 11. g5 {[%clk 0:02:52.9]} 11...
Nxb3 {[%clk 0:02:36.3]} 12. axb3 {[%clk 0:02:52.3]} 12... Nd7 {[%clk 0:02:33.6]}
13. f4 {[%clk 0:02:52.8]} 13... O-O {[%clk 0:02:09.6]} 14. h4 {[%clk 0:02:49.8]}
14... b6 {[%clk 0:02:08.5]} 15. h5 {[%clk 0:02:49.6]} 15... Bb7 {[%clk
0:02:08.4]} 16. g6 {[%clk 0:02:50]} 16... Nc5 {[%clk 0:02:06.7]} 17. Qg2 {[%clk
0:02:40.7]} 17... f5 {[%clk 0:01:46.9]} 18. gxh7+ {[%clk 0:02:34.5]} 18... Kxh7
{[%clk 0:01:46]} 19. Qg6+ {[%clk 0:02:33.3]} 19... Kg8 {[%clk 0:01:41.2]} 20.
Nxe6 {[%clk 0:02:23.2]} 20... Nxe6 {[%clk 0:01:40.6]} 21. Qxe6+ {[%clk
0:02:24.1]} 21... Rf7 {[%clk 0:01:29]} 22. h6 {[%clk 0:02:24.1]} 22... Bf6
{[%clk 0:01:25.7]} 23. Nd5 {[%clk 0:02:07.9]} 23... Bxd5 {[%clk 0:01:22.5]} 24.
Qxd5 {[%clk 0:02:08.8]} 24... Re8 {[%clk 0:01:13.6]} 25. O-O-O {[%clk
0:02:03.2]} 25... Rxe4 {[%clk 0:01:09.8]} 26. Bxb6 {[%clk 0:02:02.8]} 26... Qe7
{[%clk 0:01:01.2]} 27. Bd8 {[%clk 0:01:49.8]} 27... Qe6 {[%clk 0:00:59.8]} 28.
Qa8 {[%clk 0:01:43.8]} 28... Rf8 {[%clk 0:00:54.9]} 29. hxg7 {[%clk 0:01:39.5]}
29... Bxg7 {[%clk 0:00:49.5]} 30. Rdg1 {[%clk 0:01:30.1]} 30... Re2 {[%clk
0:00:43.5]} 31. Qb7 {[%clk 0:01:11.5]} 31... Rf7 {[%clk 0:00:42.1]} 32. Qxa6
{[%clk 0:00:55.9]} 32... Qe4 {[%clk 0:00:30.5]} 33. Qc8 {[%clk 0:00:55.4]} 33...
Rf8 {[%clk 0:00:29.4]} 34. Qc7 {[%clk 0:00:53]} 34... Qd4 {[%clk 0:00:16.7]} 35.
Rh3 {[%clk 0:00:14]} 35... Qxb2+ {[%clk 0:00:13]} 36. Kd1 {[%clk 0:00:14.7]}
36... Qd4+ {[%clk 0:00:11.1]} 37. Kxe2 {[%clk 0:00:14]} 37... Re8+ {[%clk
0:00:10.9]} 38. Be7 {[%clk 0:00:11.2]} 38... Qxg1 {[%clk 0:00:10.4]} 39. Re3
{[%clk 0:00:09.8]} 39... Qg2+ {[%clk 0:00:09.6]} 40. Kd3 {[%clk 0:00:09.7]}
40... Qd5+ {[%clk 0:00:09.6]} 41. Ke2 {[%clk 0:00:10.4]} 41... Qg2+ {[%clk
0:00:09.8]} 42. Kd3 {[%clk 0:00:11]} 42... Qd5+ {[%clk 0:00:08.8]} 43. Ke2
{[%clk 0:00:11.1]} 43... Qg2+ {[%clk 0:00:04.3]} 1/2-1/2

[Event "Early-Titled-Tuesday-Blitz-February-13-2024"]
[Site "Chess.com"]
[Date "2024.02.13"]
[Round "11"]
[White "Anton_Demchenko"]
[Black "ActorXu"]
[Result "1-0"]
[WhiteElo "2947"]
[BlackElo "2808"]
[TimeControl "180+1"]
[EndTime "10:10:28 PST"]
[Termination "Anton_Demchenko won by resignation"]

1. e4 {[%clk 0:02:56.4]} 1... e5 {[%clk 0:03:00.6]} 2. Nf3 {[%clk 0:02:55.7]}
2... Nf6 {[%clk 0:03:01.2]} 3. Nxe5 {[%clk 0:02:55.1]} 3... d6 {[%clk
0:03:01.6]} 4. Nf3 {[%clk 0:02:55.7]} 4... Nxe4 {[%clk 0:03:02.3]} 5. Nc3 {[%clk
0:02:56.6]} 5... Nxc3 {[%clk 0:03:00.3]} 6. dxc3 {[%clk 0:02:57.5]} 6... Be7
{[%clk 0:03:00.8]} 7. Bf4 {[%clk 0:02:58]} 7... Nc6 {[%clk 0:02:57.9]} 8. Qd2
{[%clk 0:02:57.7]} 8... Be6 {[%clk 0:02:57.7]} 9. O-O-O {[%clk 0:02:54.2]} 9...
Qd7 {[%clk 0:02:52.5]} 10. Kb1 {[%clk 0:02:52.6]} 10... h6 {[%clk 0:02:49.9]}
11. Be3 {[%clk 0:02:49]} 11... a6 {[%clk 0:02:48.3]} 12. Nd4 {[%clk 0:02:44.6]}
12... Nxd4 {[%clk 0:02:29.2]} 13. Bxd4 {[%clk 0:02:45.5]} 13... O-O {[%clk
0:02:20.2]} 14. Bd3 {[%clk 0:02:42.9]} 14... c5 {[%clk 0:02:14]} 15. Be3 {[%clk
0:02:42.4]} 15... d5 {[%clk 0:02:09.2]} 16. Rhg1 {[%clk 0:01:33.3]} 16... Rfd8
{[%clk 0:01:59.4]} 17. g4 {[%clk 0:01:25]} 17... d4 {[%clk 0:01:52.5]} 18. cxd4
{[%clk 0:01:24.1]} 18... cxd4 {[%clk 0:01:52.8]} 19. Bxh6 {[%clk 0:01:14.1]}
19... Qd5 {[%clk 0:01:47.5]} 20. b3 {[%clk 0:01:10.5]} 20... gxh6 {[%clk
0:01:44.6]} 21. Qxh6 {[%clk 0:01:07.1]} 21... Qg5 {[%clk 0:01:44.7]} 22. Qh7+
{[%clk 0:01:02]} 22... Kf8 {[%clk 0:01:44.2]} 23. f4 {[%clk 0:00:54.3]} 23...
Qh4 {[%clk 0:01:40.2]} 24. Qe4 {[%clk 0:00:41]} 24... Bd5 {[%clk 0:01:35.8]} 25.
Qe2 {[%clk 0:00:33.8]} 25... Bb4 {[%clk 0:01:11.4]} 26. Qe5 {[%clk 0:00:33]}
26... Bc3 {[%clk 0:00:50.7]} 27. g5 {[%clk 0:00:33.1]} 27... Qh3 {[%clk
0:00:42.9]} 28. g6 {[%clk 0:00:30.9]} 28... Qe6 {[%clk 0:00:34.9]} 29. g7+
{[%clk 0:00:25.2]} 29... Ke7 {[%clk 0:00:35.5]} 30. Qc7+ {[%clk 0:00:24.9]}
30... Qd7 {[%clk 0:00:16.5]} 31. Rde1+ {[%clk 0:00:21.7]} 31... Bxe1 {[%clk
0:00:15.9]} 32. Rxe1+ {[%clk 0:00:22.4]} 32... Be6 {[%clk 0:00:15]} 33. Qc5+
{[%clk 0:00:15.8]} 33... Qd6 {[%clk 0:00:15.4]} 34. Qg5+ {[%clk 0:00:16.5]}
34... Kd7 {[%clk 0:00:15.7]} 35. f5 {[%clk 0:00:17.1]} 35... Bd5 {[%clk
0:00:16]} 36. f6 {[%clk 0:00:17.6]} 36... Be6 {[%clk 0:00:15.4]} 37. h4 {[%clk
0:00:16.9]} 37... a5 {[%clk 0:00:10.8]} 38. a4 {[%clk 0:00:13.4]} 38... Qb4
{[%clk 0:00:09.7]} 39. Qb5+ {[%clk 0:00:13.6]} 39... Qxb5 {[%clk 0:00:09]} 40.
axb5 {[%clk 0:00:13]} 40... a4 {[%clk 0:00:03.3]} 41. bxa4 {[%clk 0:00:13.1]}
41... Rxa4 {[%clk 0:00:03.1]} 42. h5 {[%clk 0:00:11.4]} 42... Rda8 {[%clk
0:00:03.6]} 43. Kc1 {[%clk 0:00:12]} 43... Ra1+ {[%clk 0:00:01.6]} 44. Kd2
{[%clk 0:00:12.7]} 44... Rxe1 {[%clk 0:00:01.9]} 45. Kxe1 {[%clk 0:00:13.6]}
45... Kd6 {[%clk 0:00:01.4]} 46. h6 {[%clk 0:00:13.6]} 46... Ke5 {[%clk
0:00:02.3]} 47. h7 {[%clk 0:00:13.7]} 47... Kxf6 {[%clk 0:00:03.2]} 48. h8=Q
{[%clk 0:00:13.4]} 48... Ra1+ {[%clk 0:00:03.1]} 49. Kd2 {[%clk 0:00:13.7]} 1-0

[Event "Early-Titled-Tuesday-Blitz-February-13-2024"]
[Site "Chess.com"]
[Date "2024.02.13"]
[Round "11"]
[White "ChessQueen"]
[Black "alexrustemov"]
[Result "0-1"]
[WhiteElo "2686"]
[BlackElo "2837"]
[TimeControl "180+1"]
[EndTime "10:10:30 PST"]
[Termination "alexrustemov won by resignation"]

1. e4 {[%clk 0:03:00.9]} 1... e6 {[%clk 0:02:59.9]} 2. d4 {[%clk 0:03:01.2]}
2... d5 {[%clk 0:03:00.4]} 3. exd5 {[%clk 0:03:01.7]} 3... exd5 {[%clk
0:03:00.5]} 4. Nf3 {[%clk 0:03:02.2]} 4... Nc6 {[%clk 0:02:59.1]} 5. h3 {[%clk
0:03:01.8]} 5... Bd6 {[%clk 0:02:58.4]} 6. c4 {[%clk 0:03:01.7]} 6... dxc4
{[%clk 0:02:56.4]} 7. Bxc4 {[%clk 0:03:01.6]} 7... Nf6 {[%clk 0:02:56.6]} 8. O-O
{[%clk 0:03:00.2]} 8... O-O {[%clk 0:02:57]} 9. Nc3 {[%clk 0:02:59.3]} 9... h6
{[%clk 0:02:54.4]} 10. Be3 {[%clk 0:02:57.9]} 10... Bf5 {[%clk 0:02:52.8]} 11.
Rc1 {[%clk 0:02:54.9]} 11... a6 {[%clk 0:02:51.3]} 12. a3 {[%clk 0:02:52.7]}
12... Qd7 {[%clk 0:02:50.7]} 13. Re1 {[%clk 0:02:48.4]} 13... Rfe8 {[%clk
0:02:49.2]} 14. d5 {[%clk 0:02:39.4]} 14... Ne5 {[%clk 0:02:48.6]} 15. Nxe5
{[%clk 0:02:34.2]} 15... Bxe5 {[%clk 0:02:48.1]} 16. Qf3 {[%clk 0:02:20.5]}
16... Re7 {[%clk 0:02:35]} 17. Red1 {[%clk 0:02:07.6]} 17... Rae8 {[%clk
0:02:32.1]} 18. Bc5 {[%clk 0:01:58]} 18... Bd6 {[%clk 0:02:31.1]} 19. Be3 {[%clk
0:01:44.7]} 19... Ne4 {[%clk 0:02:27.5]} 20. Bd3 {[%clk 0:01:27.2]} 20... Bh7
{[%clk 0:02:09]} 21. Nxe4 {[%clk 0:01:22.1]} 21... Bxe4 {[%clk 0:02:09.9]} 22.
Bxe4 {[%clk 0:01:22.2]} 22... Rxe4 {[%clk 0:02:10.3]} 23. Rc2 {[%clk 0:01:20.8]}
23... Qe7 {[%clk 0:02:02.1]} 24. Rd3 {[%clk 0:01:02.6]} 24... Qe5 {[%clk
0:02:00.6]} 25. g3 {[%clk 0:00:58.1]} 25... h5 {[%clk 0:01:57.8]} 26. Kg2 {[%clk
0:00:51.5]} 26... h4 {[%clk 0:01:56.6]} 27. Bf4 {[%clk 0:00:51.6]} 27... Qe7
{[%clk 0:01:50.7]} 28. Bxd6 {[%clk 0:00:51.7]} 28... cxd6 {[%clk 0:01:46.1]} 29.
g4 {[%clk 0:00:47.4]} 29... g6 {[%clk 0:01:36.4]} 30. b3 {[%clk 0:00:44.5]}
30... Qg5 {[%clk 0:01:29]} 31. Rc7 {[%clk 0:00:40.3]} 31... Rf4 {[%clk
0:01:27.2]} 32. Qd1 {[%clk 0:00:40.4]} 32... Qf6 {[%clk 0:01:04.4]} 33. Rf3
{[%clk 0:00:40.4]} 33... b5 {[%clk 0:01:00.6]} 34. Rxf4 {[%clk 0:00:38.6]} 34...
Qxf4 {[%clk 0:01:00.8]} 35. Qf3 {[%clk 0:00:38.9]} 35... Qxf3+ {[%clk
0:00:55.7]} 36. Kxf3 {[%clk 0:00:39.8]} 36... Re5 {[%clk 0:00:52.2]} 37. Rc6
{[%clk 0:00:40.3]} 37... Rxd5 {[%clk 0:00:52.3]} 38. Ke2 {[%clk 0:00:30]} 38...
a5 {[%clk 0:00:50.6]} 39. Ra6 {[%clk 0:00:28.5]} 39... b4 {[%clk 0:00:50.1]} 40.
axb4 {[%clk 0:00:25]} 40... axb4 {[%clk 0:00:51]} 41. Rb6 {[%clk 0:00:25.5]}
41... Rd4 {[%clk 0:00:47.1]} 42. Ke3 {[%clk 0:00:25.9]} 42... Rd1 {[%clk
0:00:47.2]} 43. Rxb4 {[%clk 0:00:25.8]} 43... Rh1 {[%clk 0:00:46.7]} 44. Rd4
{[%clk 0:00:25.4]} 44... Rxh3+ {[%clk 0:00:46.6]} 45. f3 {[%clk 0:00:26]} 45...
Rh2 {[%clk 0:00:40]} 46. Rxd6 {[%clk 0:00:25]} 46... Rb2 {[%clk 0:00:39.2]} 47.
Rd3 {[%clk 0:00:12.2]} 47... g5 {[%clk 0:00:31.6]} 48. Kd4 {[%clk 0:00:11.9]}
48... h3 {[%clk 0:00:28.5]} 49. Kc4 {[%clk 0:00:11.1]} 49... h2 {[%clk
0:00:21.3]} 50. Rd1 {[%clk 0:00:11.2]} 50... Kg7 {[%clk 0:00:21.6]} 51. b4
{[%clk 0:00:10.5]} 51... Kf6 {[%clk 0:00:22.3]} 52. b5 {[%clk 0:00:10.5]} 52...
Ke5 {[%clk 0:00:22.8]} 53. Kc5 {[%clk 0:00:08.8]} 53... Kf4 {[%clk 0:00:22.6]}
54. b6 {[%clk 0:00:08.7]} 54... Kxf3 {[%clk 0:00:22.1]} 55. Kc6 {[%clk 0:00:08]}
55... Kxg4 {[%clk 0:00:21.1]} 56. b7 {[%clk 0:00:07.6]} 56... Rxb7 {[%clk
0:00:20.3]} 57. Kxb7 {[%clk 0:00:07.7]} 57... Kh3 {[%clk 0:00:20.9]} 58. Kc6
{[%clk 0:00:07.7]} 58... g4 {[%clk 0:00:21.5]} 59. Kd5 {[%clk 0:00:08.3]} 59...
g3 {[%clk 0:00:22.2]} 60. Ke4 {[%clk 0:00:08.7]} 60... g2 {[%clk 0:00:22.8]} 0-1

[Event "Early-Titled-Tuesday-Blitz-February-13-2024"]
[Site "Chess.com"]
[Date "2024.02.13"]
[Round "11"]
[White "Juicy_Fork"]
[Black "karinachess1"]
[Result "0-1"]
[WhiteElo "2485"]
[BlackElo "2673"]
[TimeControl "180+1"]
[EndTime "10:10:31 PST"]
[Termination "karinachess1 won by checkmate"]

1. e4 {[%clk 0:02:55.7]} 1... e5 {[%clk 0:02:53.7]} 2. Nf3 {[%clk 0:02:55.6]}
2... Nc6 {[%clk 0:02:53.6]} 3. Bb5 {[%clk 0:02:54.9]} 3... Nge7 {[%clk
0:02:53.4]} 4. Nc3 {[%clk 0:02:54.1]} 4... Ng6 {[%clk 0:02:45.9]} 5. d4 {[%clk
0:02:50.6]} 5... exd4 {[%clk 0:02:45.8]} 6. Nxd4 {[%clk 0:02:50.8]} 6... Nxd4
{[%clk 0:02:42.9]} 7. Qxd4 {[%clk 0:02:50.6]} 7... c6 {[%clk 0:02:43.5]} 8. Be2
{[%clk 0:02:44.2]} 8... Qb6 {[%clk 0:02:40.7]} 9. Qd3 {[%clk 0:02:31.7]} 9...
Be7 {[%clk 0:02:36.2]} 10. O-O {[%clk 0:02:30.6]} 10... O-O {[%clk 0:02:35.3]}
11. Be3 {[%clk 0:02:19.9]} 11... Qxb2 {[%clk 0:02:29.1]} 12. f4 {[%clk
0:02:15.9]} 12... Qa3 {[%clk 0:02:02.4]} 13. Bd4 {[%clk 0:02:00.9]} 13... d6
{[%clk 0:01:53.5]} 14. f5 {[%clk 0:01:46.4]} 14... Ne5 {[%clk 0:01:51.8]} 15.
Qg3 {[%clk 0:01:38.3]} 15... Bf6 {[%clk 0:01:46.4]} 16. Kh1 {[%clk 0:01:32.5]}
16... Kh8 {[%clk 0:01:33.6]} 17. Rad1 {[%clk 0:01:29.6]} 17... Bd7 {[%clk
0:01:27.4]} 18. Qf4 {[%clk 0:01:10.1]} 18... Rad8 {[%clk 0:01:16.8]} 19. g4
{[%clk 0:01:09.6]} 19... h6 {[%clk 0:00:54.9]} 20. Rg1 {[%clk 0:01:00.1]} 20...
c5 {[%clk 0:00:35]} 21. Nd5 {[%clk 0:00:56.7]} 21... Bg5 {[%clk 0:00:35.3]} 22.
Qf2 {[%clk 0:00:32.9]} 22... cxd4 {[%clk 0:00:35.5]} 23. Rxd4 {[%clk 0:00:31.8]}
23... Bc6 {[%clk 0:00:34.4]} 24. h4 {[%clk 0:00:29.6]} 24... Qh3+ {[%clk
0:00:32.9]} 25. Qh2 {[%clk 0:00:27.6]} 25... Qxh2+ {[%clk 0:00:33]} 26. Kxh2
{[%clk 0:00:28.5]} 26... Bxh4 {[%clk 0:00:33.4]} 27. Kg2 {[%clk 0:00:15.9]}
27... Bg5 {[%clk 0:00:31.2]} 28. f6 {[%clk 0:00:11.8]} 28... gxf6 {[%clk
0:00:28.2]} 29. Rf1 {[%clk 0:00:11.6]} 29... Bxd5 {[%clk 0:00:27.4]} 30. exd5
{[%clk 0:00:11.3]} 30... Rc8 {[%clk 0:00:27.4]} 31. c4 {[%clk 0:00:11.6]} 31...
b5 {[%clk 0:00:26.5]} 32. cxb5 {[%clk 0:00:10.3]} 32... Rc2 {[%clk 0:00:26.6]}
33. Re4 {[%clk 0:00:10.3]} 33... Rxa2 {[%clk 0:00:24.3]} 34. Kg1 {[%clk
0:00:05.1]} 34... Rc8 {[%clk 0:00:24.1]} 35. Bd1 {[%clk 0:00:03.6]} 35... Rc3
{[%clk 0:00:21.5]} 36. Rb4 {[%clk 0:00:03]} 36... Rg3+ {[%clk 0:00:19]} 37. Kh1
{[%clk 0:00:03.6]} 37... Rh3+ {[%clk 0:00:19.4]} 38. Kg1 {[%clk 0:00:04.2]}
38... Be3+ {[%clk 0:00:20.1]} 39. Rf2 {[%clk 0:00:04.8]} 39... Bxf2+ {[%clk
0:00:20]} 40. Kg2 {[%clk 0:00:05.1]} 40... Bc5+ {[%clk 0:00:20.1]} 41. Kxh3
{[%clk 0:00:05.1]} 41... Bxb4 {[%clk 0:00:20.7]} 42. Kh4 {[%clk 0:00:02.8]}
42... Bc5 {[%clk 0:00:19.3]} 43. Bb3 {[%clk 0:00:01.8]} 43... Rb2 {[%clk
0:00:19.4]} 44. Ba4 {[%clk 0:00:01.7]} 44... Rb4 {[%clk 0:00:19.8]} 45. Bd1
{[%clk 0:00:01.3]} 45... Rxb5 {[%clk 0:00:19.9]} 46. Kh5 {[%clk 0:00:02.2]}
46... a5 {[%clk 0:00:19.7]} 47. Kxh6 {[%clk 0:00:01.8]} 47... Rb2 {[%clk
0:00:19.5]} 48. g5 {[%clk 0:00:02.7]} 48... fxg5 {[%clk 0:00:19.2]} 49. Bh5
{[%clk 0:00:03.1]} 49... g4 {[%clk 0:00:18.4]} 50. Bxg4 {[%clk 0:00:02]} 50...
Nxg4+ {[%clk 0:00:18.3]} 51. Kg5 {[%clk 0:00:02.9]} 51... a4 {[%clk 0:00:18.3]}
52. Kf5 {[%clk 0:00:03.8]} 52... a3 {[%clk 0:00:18.6]} 53. Kg5 {[%clk
0:00:03.8]} 53... a2 {[%clk 0:00:19.1]} 54. Kh5 {[%clk 0:00:04.7]} 54... a1=Q
{[%clk 0:00:19.2]} 55. Kg5 {[%clk 0:00:05.6]} 55... Ne5 {[%clk 0:00:19]} 56. Kh5
{[%clk 0:00:06.5]} 56... Qg1 {[%clk 0:00:17.3]} 57. Kh6 {[%clk 0:00:06.8]} 57...
Rh2# {[%clk 0:00:17.9]} 0-1

[Event "Early-Titled-Tuesday-Blitz-February-13-2024"]
[Site "Chess.com"]
[Date "2024.02.13"]
[Round "11"]
[White "emeli_chess"]
[Black "tantaan"]
[Result "0-1"]
[WhiteElo "2374"]
[BlackElo "2511"]
[TimeControl "180+1"]
[EndTime "10:10:37 PST"]
[Termination "tantaan won by resignation"]

1. d4 {[%clk 0:03:00.9]} 1... Nf6 {[%clk 0:02:59]} 2. c4 {[%clk 0:03:01.2]} 2...
e6 {[%clk 0:02:57.9]} 3. Nc3 {[%clk 0:03:01.4]} 3... Bb4 {[%clk 0:02:57.1]} 4.
Qc2 {[%clk 0:03:01.7]} 4... b6 {[%clk 0:02:56]} 5. e4 {[%clk 0:03:00.3]} 5... c5
{[%clk 0:02:55.5]} 6. dxc5 {[%clk 0:02:56.9]} 6... Bb7 {[%clk 0:02:31.2]} 7. Bd3
{[%clk 0:02:46]} 7... Bxc5 {[%clk 0:02:31]} 8. Nf3 {[%clk 0:02:45.2]} 8... Nc6
{[%clk 0:02:30.7]} 9. O-O {[%clk 0:02:43.9]} 9... Nb4 {[%clk 0:02:29.5]} 10. Qe2
{[%clk 0:02:41.3]} 10... Nxd3 {[%clk 0:02:29.3]} 11. Qxd3 {[%clk 0:02:41.6]}
11... d6 {[%clk 0:02:29.6]} 12. Bg5 {[%clk 0:02:20.9]} 12... O-O {[%clk
0:02:27.4]} 13. Rfe1 {[%clk 0:02:03.8]} 13... h6 {[%clk 0:02:26.3]} 14. Bh4
{[%clk 0:02:01.5]} 14... a5 {[%clk 0:02:22.4]} 15. Na4 {[%clk 0:01:53]} 15... g5
{[%clk 0:02:13.1]} 16. Bg3 {[%clk 0:01:49.6]} 16... Qe7 {[%clk 0:02:00.9]} 17.
Nxc5 {[%clk 0:01:48]} 17... dxc5 {[%clk 0:02:01]} 18. Bd6 {[%clk 0:01:35.5]}
18... Qd7 {[%clk 0:02:00]} 19. e5 {[%clk 0:01:35.1]} 19... Nh5 {[%clk
0:01:58.2]} 20. Rad1 {[%clk 0:01:15.5]} 20... Rfd8 {[%clk 0:01:51.9]} 21. Qe3
{[%clk 0:01:13.7]} 21... Qc6 {[%clk 0:01:42.6]} 22. Qc3 {[%clk 0:00:34.2]} 22...
Nf4 {[%clk 0:01:34.1]} 23. Re3 {[%clk 0:00:33.8]} 23... g4 {[%clk 0:01:22.8]}
24. Ne1 {[%clk 0:00:29.5]} 24... Nxg2 {[%clk 0:01:15.8]} 25. Rg3 {[%clk
0:00:29.6]} 25... Nxe1 {[%clk 0:01:16.2]} 26. Rxg4+ {[%clk 0:00:30]} 26... Kh8
{[%clk 0:01:16.6]} 27. f3 {[%clk 0:00:21.7]} 27... Nxf3+ {[%clk 0:01:14.4]} 28.
Kf2 {[%clk 0:00:20.6]} 28... Ng5 {[%clk 0:01:09.1]} 29. Rdg1 {[%clk 0:00:19.1]}
29... Ne4+ {[%clk 0:01:06]} 30. Rxe4 {[%clk 0:00:18.7]} 30... Qxe4 {[%clk
0:01:06.5]} 31. Be7 {[%clk 0:00:15.3]} 31... Qf4+ {[%clk 0:00:45.8]} 32. Ke1
{[%clk 0:00:14]} 32... Qe4+ {[%clk 0:00:34.8]} 33. Kf2 {[%clk 0:00:13.6]} 33...
Rg8 {[%clk 0:00:20.1]} 34. Bf6+ {[%clk 0:00:13.5]} 34... Kh7 {[%clk 0:00:20.5]}
35. Rg3 {[%clk 0:00:13.2]} 35... Rg6 {[%clk 0:00:19.1]} 36. Qd2 {[%clk
0:00:11.6]} 36... Rag8 {[%clk 0:00:18.7]} 37. Qc3 {[%clk 0:00:09]} 37... Rxg3
{[%clk 0:00:18]} 38. hxg3 {[%clk 0:00:09.3]} 38... Qd4+ {[%clk 0:00:15.7]} 39.
Qxd4 {[%clk 0:00:08.9]} 39... cxd4 {[%clk 0:00:16.6]} 40. Bh4 {[%clk 0:00:08.6]}
40... Kg6 {[%clk 0:00:16.5]} 41. Ke2 {[%clk 0:00:08.1]} 41... Kf5 {[%clk
0:00:17.1]} 42. Kd3 {[%clk 0:00:08.5]} 42... Rg4 {[%clk 0:00:16.8]} 43. b3
{[%clk 0:00:07.9]} 43... Be4+ {[%clk 0:00:16.8]} 44. Kd2 {[%clk 0:00:07.8]}
44... Bb1 {[%clk 0:00:17.1]} 45. a3 {[%clk 0:00:07.8]} 45... Ke4 {[%clk
0:00:17.2]} 46. b4 {[%clk 0:00:07.7]} 46... axb4 {[%clk 0:00:16.9]} 47. axb4
{[%clk 0:00:07.8]} 47... Ba2 {[%clk 0:00:17.8]} 48. c5 {[%clk 0:00:08]} 48...
bxc5 {[%clk 0:00:18.7]} 49. bxc5 {[%clk 0:00:08.9]} 49... Bd5 {[%clk 0:00:19.4]}
50. Ke2 {[%clk 0:00:08.7]} 50... Kxe5 {[%clk 0:00:19.9]} 51. Kd3 {[%clk
0:00:08.8]} 51... Rg8 {[%clk 0:00:20.8]} 52. Be7 {[%clk 0:00:08.4]} 52... Rc8
{[%clk 0:00:21.7]} 53. Ke2 {[%clk 0:00:07.7]} 53... Ke4 {[%clk 0:00:22.3]} 54.
Kd2 {[%clk 0:00:07.9]} 54... d3 {[%clk 0:00:23.2]} 0-1

[Event "Early-Titled-Tuesday-Blitz-February-13-2024"]
[Site "Chess.com"]
[Date "2024.02.13"]
[Round "11"]
[White "dropstoneDP"]
[Black "bulletteemo"]
[Result "1-0"]
[WhiteElo "3045"]
[BlackElo "2611"]
[TimeControl "180+1"]
[EndTime "10:10:39 PST"]
[Termination "dropstoneDP won by checkmate"]

1. e4 {[%clk 0:02:59.9]} 1... c5 {[%clk 0:02:59.5]} 2. Nf3 {[%clk 0:03:00.3]}
2... d6 {[%clk 0:02:59]} 3. d4 {[%clk 0:03:00.8]} 3... cxd4 {[%clk 0:02:59.7]}
4. Nxd4 {[%clk 0:03:01.7]} 4... Nf6 {[%clk 0:03:00.5]} 5. Nc3 {[%clk 0:03:02]}
5... g6 {[%clk 0:03:01.2]} 6. Be3 {[%clk 0:03:01.4]} 6... Bg7 {[%clk 0:03:01.6]}
7. f3 {[%clk 0:03:01.9]} 7... a6 {[%clk 0:03:02.1]} 8. Qd2 {[%clk 0:03:00.8]}
8... h5 {[%clk 0:03:02.4]} 9. Bc4 {[%clk 0:02:59.2]} 9... Nbd7 {[%clk
0:02:56.6]} 10. O-O-O {[%clk 0:02:57.9]} 10... b5 {[%clk 0:02:53.3]} 11. Bb3
{[%clk 0:02:54.2]} 11... Bb7 {[%clk 0:02:52]} 12. Kb1 {[%clk 0:02:53.6]} 12...
Nc5 {[%clk 0:02:51.3]} 13. Rhe1 {[%clk 0:02:52.7]} 13... Nxb3 {[%clk 0:02:46.9]}
14. cxb3 {[%clk 0:02:50.1]} 14... Rc8 {[%clk 0:02:33.6]} 15. Bg5 {[%clk
0:02:47.5]} 15... Qb6 {[%clk 0:02:27.8]} 16. h3 {[%clk 0:02:35.3]} 16... h4
{[%clk 0:02:15.9]} 17. b4 {[%clk 0:02:21.6]} 17... Rc4 {[%clk 0:01:54.8]} 18.
Nb3 {[%clk 0:01:58.7]} 18... Rxb4 {[%clk 0:01:40.4]} 19. Nd5 {[%clk 0:01:56.9]}
19... Bxd5 {[%clk 0:01:08.6]} 20. Qxb4 {[%clk 0:01:54.8]} 20... Bb7 {[%clk
0:00:54.1]} 21. Na5 {[%clk 0:01:28.4]} 21... Bc8 {[%clk 0:00:48.7]} 22. Nc4
{[%clk 0:00:59.2]} 22... Qc5 {[%clk 0:00:34.5]} 23. Qxc5 {[%clk 0:00:52.3]}
23... dxc5 {[%clk 0:00:35.4]} 24. Nb6 {[%clk 0:00:52.8]} 24... Be6 {[%clk
0:00:35]} 25. Na8 {[%clk 0:00:45.5]} 25... O-O {[%clk 0:00:22.6]} 26. Nc7 {[%clk
0:00:45.6]} 26... Bc8 {[%clk 0:00:23.1]} 27. e5 {[%clk 0:00:43.1]} 27... Nh5
{[%clk 0:00:19]} 28. Bxe7 {[%clk 0:00:42.6]} 28... Bf5+ {[%clk 0:00:19.3]} 29.
Ka1 {[%clk 0:00:42.7]} 29... Rc8 {[%clk 0:00:19.5]} 30. Nxa6 {[%clk 0:00:42.8]}
30... c4 {[%clk 0:00:19.3]} 31. Rd8+ {[%clk 0:00:41.5]} 31... Rxd8 {[%clk
0:00:19.8]} 32. Bxd8 {[%clk 0:00:42.4]} 32... Nf4 {[%clk 0:00:20.3]} 33. Rh1
{[%clk 0:00:17.1]} 33... Bc8 {[%clk 0:00:12.3]} 34. Nc7 {[%clk 0:00:12.7]} 34...
Bxe5 {[%clk 0:00:12.4]} 35. Nxb5 {[%clk 0:00:12.3]} 35... Nxg2 {[%clk 0:00:07]}
36. a4 {[%clk 0:00:12.9]} 36... Bb7 {[%clk 0:00:05.3]} 37. a5 {[%clk 0:00:09.5]}
37... Bxf3 {[%clk 0:00:05.4]} 38. a6 {[%clk 0:00:08.7]} 38... Ne3 {[%clk
0:00:04.2]} 39. Rc1 {[%clk 0:00:06.6]} 39... Nd5 {[%clk 0:00:02.4]} 40. a7
{[%clk 0:00:06.1]} 40... Nb4 {[%clk 0:00:02.7]} 41. Rxc4 {[%clk 0:00:05.6]}
41... Nd3 {[%clk 0:00:02.8]} 42. Rc8 {[%clk 0:00:04.2]} 42... Kg7 {[%clk
0:00:02.1]} 43. Bxh4 {[%clk 0:00:03.8]} 43... Bxb2+ {[%clk 0:00:01.8]} 44. Kb1
{[%clk 0:00:04.3]} 44... Be5 {[%clk 0:00:01.3]} 45. a8=Q {[%clk 0:00:04.2]}
45... Bxa8 {[%clk 0:00:01.7]} 46. Rxa8 {[%clk 0:00:05.1]} 46... Nf4 {[%clk
0:00:02.3]} 47. Bg3 {[%clk 0:00:04.8]} 47... Nd3 {[%clk 0:00:01.8]} 48. Kc2
{[%clk 0:00:03.8]} 48... Bxg3 {[%clk 0:00:01.7]} 49. Kxd3 {[%clk 0:00:04]} 49...
f5 {[%clk 0:00:02.5]} 50. Ke3 {[%clk 0:00:04.2]} 50... Kh6 {[%clk 0:00:03]} 51.
Kf3 {[%clk 0:00:04.8]} 51... Be5 {[%clk 0:00:03.4]} 52. Ra6 {[%clk 0:00:04.5]}
52... Kh5 {[%clk 0:00:03.6]} 53. Nd6 {[%clk 0:00:05]} 53... Kh4 {[%clk
0:00:03.7]} 54. Nf7 {[%clk 0:00:05.5]} 54... Bd4 {[%clk 0:00:02.3]} 55. Rxg6
{[%clk 0:00:05.9]} 55... Kxh3 {[%clk 0:00:02.9]} 56. Rh6# {[%clk 0:00:06.2]} 1-0